fUSD/lending_fUSD_20250513
["ID","MTS","AMOUNT","RATE_DAILY","PERIOD"]
[360976676,1747176647449,-151.0,0.00010969,2]
[360976677,1747176647459,-151.0,0.00010969,2]
[360976678,1747176647469,-151.0,0.00010969,2]
[360976679,1747176647478,-151.0,0.00010969,2]
[360976680,1747176647490,-400.0,0.00010969,2]
[360976681,1747176647500,-151.0,0.00010969,2]
[360976682,1747176647509,-151.0,0.00010969,2]
[360976683,1747176647518,-151.0,0.00010969,2]
[360976684,1747176647527,-151.0,0.00010969,2]
[360976685,1747176647537,-1145.2,0.00010969,2]
[360976686,1747176647547,-693.33,0.00010969,2]
[360976687,1747176647557,-151.0,0.0001097,2]
[360976688,1747176647566,-151.0,0.0001097,2]
[360976689,1747176647576,-151.0,0.0001097,2]
[360976690,1747176647586,-151.0,0.0001097,2]
[360976691,1747176647596,-151.0,0.0001097,2]
[360976692,1747176647605,-151.0,0.0001097,2]
[360976693,1747176647615,-649.911468,0.0001097,2]
[360976694,1747176647624,-649.911468,0.0001097,2]
[360976695,1747176647633,-151.0,0.0001097,2]
[360976696,1747176647643,-151.0,0.0001097,2]
[360976697,1747176647653,-151.0,0.0001097,2]
[360976698,1747176647662,-151.0,0.0001097,2]
[360976699,1747176647675,-151.0,0.0001097,2]
[360976700,1747176647684,-230.947154,0.0001097,2]
[360976701,1747176647694,-151.0,0.0001097,2]
[360976702,1747176647704,-151.0,0.0001097,2]
[360976703,1747176647713,-151.0,0.0001097,2]
[360976704,1747176647722,-151.0,0.0001097,2]
[360976705,1747176647730,-218.993486,0.0001097,2]
[360976706,1747176647740,-207.668444,0.0001097,2]
[360976707,1747176647749,-239.72,0.0001097,2]
[360976708,1747176647759,-394.63654,0.0001097,2]
[360976709,1747176647769,-394.63654,0.0001097,2]
[360976710,1747176647778,-394.63654,0.0001097,2]
[360976711,1747176647788,-394.63654,0.0001097,2]
[360976712,1747176647798,-394.63654,0.0001097,2]
[360976713,1747176647807,-394.63654,0.0001097,2]
[360976714,1747176647817,-151.0,0.0001097,2]
[360976715,1747176647826,-151.0,0.0001097,2]
[360976716,1747176647835,-151.0,0.0001097,2]
[360976717,1747176647846,-151.0,0.0001097,2]
[360976718,1747176647855,-151.0,0.0001097,2]
[360976719,1747176647865,-228.765933,0.0001097,2]
[360976720,1747176647874,-151.0,0.0001097,2]
[360976721,1747176647884,-151.0,0.0001097,2]
[360976722,1747176647893,-151.0,0.0001097,2]
[360976723,1747176647903,-151.0,0.0001097,2]
[360976724,1747176647912,-157.786871,0.0001097,2]
[360976725,1747176647922,-200.626622,0.0001097,2]
[360976726,1747176647932,-151.0,0.0001097,2]
[360976727,1747176647942,-151.0,0.0001097,2]
[360976728,1747176647952,-151.0,0.0001097,2]
[360976729,1747176647963,-151.0,0.0001097,2]
[360976730,1747176647972,-151.0,0.0001097,2]
[360976731,1747176647982,-151.0,0.0001097,2]
[360976732,1747176647992,-151.0,0.0001097,2]
[360976733,1747176648001,-151.0,0.0001097,2]
[360976734,1747176648011,-273.667325,0.0001097,2]
[360976735,1747176648021,-151.0,0.0001097,2]
[360976736,1747176648031,-151.0,0.0001097,2]
[360976737,1747176648040,-151.0,0.0001097,2]
[360976738,1747176648050,-1259.231209,0.0001097,2]
[360976739,1747176648059,-1259.231209,0.0001097,2]
[360976740,1747176648069,-1259.231209,0.0001097,2]
[360976741,1747176648078,-1259.231209,0.0001097,2]
[360976742,1747176648089,-1259.231209,0.0001097,2]
[360976743,1747176648098,-1259.231209,0.0001097,2]
[360976744,1747176648108,-151.0,0.0001097,2]
[360976745,1747176648117,-151.0,0.0001097,2]
[360976746,1747176648126,-151.0,0.0001097,2]
[360976747,1747176648136,-215.434564,0.0001097,2]
[360976748,1747176648145,-151.0,0.0001097,2]
[360976749,1747176648154,-152.537226,0.0001097,2]
[360976750,1747176648163,-302.552997,0.0001097,2]
[360976751,1747176648174,-302.552997,0.0001097,2]
[360976752,1747176648184,-302.552997,0.0001097,2]
[360976753,1747176648194,-348.689341,0.0001097,2]
[360976754,1747176648203,-348.689341,0.0001097,2]
[360976755,1747176648212,-348.689341,0.0001097,2]
[360976756,1747176648222,-302.552997,0.0001097,2]
[360976757,1747176648231,-302.552997,0.0001097,2]
[360976758,1747176648241,-302.552997,0.0001097,2]
[360976759,1747176648250,-348.689341,0.0001097,2]
[360976760,1747176648260,-348.689341,0.0001097,2]
[360976761,1747176648269,-348.689341,0.0001097,2]
[360976762,1747176648279,-400.0,0.0001097,2]
[360976763,1747176648289,-152.904492,0.0001097,2]
[360976764,1747176648298,-152.904492,0.0001097,2]
[360976765,1747176648308,-152.904492,0.0001097,2]
[360976766,1747176648317,-152.904492,0.0001097,2]
[360976767,1747176648327,-1804.85,0.0001097,2]
[360976768,1747176648337,-400.0,0.0001097,2]
[360976769,1747176648347,-400.0,0.0001097,2]
[360976770,1747176648356,-400.0,0.0001097,2]
[360976771,1747176648366,-400.0,0.0001097,2]
[360976772,1747176648375,-400.0,0.0001097,2]
[360976773,1747176648385,-1537.7,0.0001097,2]
[360976774,1747176648394,-456.51,0.0001097,2]
[360976775,1747176648406,-400.0,0.0001097,2]
[360976776,1747176648421,-368.273227,0.0001097,2]
[360976777,1747176648430,-511.96,0.0001097,2]
[360976778,1747176648440,-368.273227,0.0001097,2]
[360976779,1747176648449,-368.273227,0.0001097,2]
[360976780,1747176648459,-151.0,0.0001097,2]
[360976781,1747176648468,-151.0,0.0001097,2]
[360976782,1747176648478,-1777.27,0.0001097,2]
[360976783,1747176648490,-1078.74,0.0001097,2]
[360976784,1747176648500,-400.0,0.0001097,2]
[360976785,1747176648510,-242.116731,0.0001097,2]
[360976786,1747176648520,-242.116731,0.0001097,2]
[360976787,1747176648529,-242.116731,0.0001097,2]
[360976788,1747176648539,-900.1,0.0001097,2]
[360976789,1747176648549,-242.116731,0.0001097,2]
[360976790,1747176648559,-242.116731,0.0001097,2]
[360976791,1747176648568,-242.116731,0.0001097,2]
[360976792,1747176648577,-400.0,0.0001097,2]
[360976793,1747176648587,-485.93,0.0001097,2]
[360976794,1747176648596,-400.0,0.0001097,2]
[360976795,1747176648605,-398.440039,0.0001097,2]
[360976796,1747176648615,-398.440039,0.0001097,2]
[360976797,1747176648624,-398.440039,0.0001097,2]
[360976798,1747176648634,-398.440039,0.0001097,2]
[360976799,1747176648644,-151.0,0.0001097,2]
[360976800,1747176648653,-151.0,0.0001097,2]
[360976801,1747176648663,-151.0,0.0001097,2]
[360976802,1747176648673,-151.0,0.0001097,2]
[360976803,1747176648683,-151.0,0.0001097,2]
[360976804,1747176648692,-151.0,0.0001097,2]
[360976805,1747176648702,-1185.0,0.0001097,2]
[360976806,1747176648711,-275.37198396,0.0001097,2]
[360976807,1747176648721,-1288.70781789,0.0001097,2]
[360976808,1747176648731,-151.0,0.0001097,2]
[360976809,1747176648740,-151.0,0.0001097,2]
[360976810,1747176648750,-151.0,0.0001097,2]
[360976811,1747176648760,-151.0,0.0001097,2]
[360976812,1747176648770,-151.0,0.0001097,2]
[360976813,1747176648779,-151.0,0.0001097,2]
[360976814,1747176648790,-210.438986,0.0001097,2]
[360976815,1747176648799,-192.364707,0.0001097,2]
[360976816,1747176648810,-244.173136,0.0001097,2]
[360976817,1747176648820,-244.173136,0.0001097,2]
[360976818,1747176648830,-244.173136,0.0001097,2]
[360976819,1747176648839,-244.173136,0.0001097,2]
[360976820,1747176648849,-635.713762,0.0001097,2]
[360976821,1747176648859,-635.713762,0.0001097,2]
[360976822,1747176648868,-635.713762,0.0001097,2]
[360976823,1747176648878,-635.713762,0.0001097,2]
[360976824,1747176648887,-151.0,0.0001097,2]
[360976825,1747176648898,-151.0,0.0001097,2]
[360976826,1747176648907,-210.958419,0.0001097,2]
[360976827,1747176648917,-151.0,0.0001097,2]
[360976828,1747176648927,-372.683801,0.0001097,2]
[360976829,1747176648937,-372.683801,0.0001097,2]
[360976830,1747176648947,-372.683801,0.0001097,2]
[360976831,1747176648957,-372.683801,0.0001097,2]
[360976832,1747176648966,-151.0,0.0001097,2]
[360976833,1747176648975,-246.690752,0.0001097,2]
[360976834,1747176648984,-160.0,0.0001097,2]
[360976835,1747176648995,-1185.0,0.0001097,2]
[360976836,1747176649004,-1185.0,0.0001097,2]
[360976837,1747176649014,-151.0,0.0001097,2]
[360976838,1747176649023,-1185.0,0.0001097,2]
[360976839,1747176649033,-1185.0,0.0001097,2]
[360976840,1747176649042,-1185.0,0.0001097,2]
[360976841,1747176649052,-1185.0,0.0001097,2]
[360976842,1747176649062,-1185.0,0.0001097,2]
[360976843,1747176649071,-1185.0,0.0001097,2]
[360976844,1747176649081,-1185.0,0.0001097,2]
[360976845,1747176649090,-1185.0,0.0001097,2]
[360976846,1747176649100,-1185.0,0.0001097,2]
[360976847,1747176649109,-705.18073963,0.0001097,2]
[360976848,1747176649118,-243.651086,0.0001097,2]
[360976849,1747176649129,-151.0,0.00010971,2]
[360976850,1747176649139,-151.0,0.00010971,2]
[360976851,1747176649149,-155.227064,0.00010971,2]
[360976852,1747176649159,-151.114472,0.00010971,2]
[360976853,1747176649168,-152.363441,0.00010971,2]
[360976854,1747176649178,-175.931351,0.00010971,2]
[360976855,1747176649188,-152.363441,0.00010971,2]
[360976856,1747176649198,-151.0,0.00010971,2]
[360976857,1747176649210,-151.0,0.00010971,2]
[360976858,1747176649219,-151.0,0.00010971,2]
[360976859,1747176649229,-151.0,0.00010971,2]
[360976860,1747176649238,-151.0,0.00010971,2]
[360976861,1747176649248,-151.0,0.00010971,2]
[360976862,1747176649258,-649.911468,0.00010971,2]
[360976863,1747176649428,-649.911468,0.00010971,2]
[360976864,1747176649438,-649.911468,0.00010971,2]
[360976865,1747176649448,-649.911468,0.00010971,2]
[360976866,1747176649459,-151.0,0.00010971,2]
[360976867,1747176649468,-151.0,0.00010971,2]
[360976868,1747176649477,-163.665196,0.00010971,2]
[360976869,1747176649489,-151.0,0.00010971,2]
[360976870,1747176649498,-151.0,0.00010971,2]
[360976871,1747176649507,-151.0,0.00010971,2]
[360976872,1747176649516,-151.0,0.00010971,2]
[360976873,1747176649526,-181.754089,0.00010971,2]
[360976874,1747176649535,-394.63654,0.00010971,2]
[360976875,1747176649545,-394.63654,0.00010971,2]
[360976876,1747176649554,-151.0,0.00010971,2]
[360976877,1747176649564,-151.0,0.00010971,2]
[360976878,1747176649574,-1259.231209,0.00010971,2]
[360976879,1747176649583,-1259.231209,0.00010971,2]
[360976880,1747176649592,-151.0,0.00010971,2]
[360976881,1747176649602,-151.0,0.00010971,2]
[360976882,1747176649612,-302.552997,0.00010971,2]
[360976883,1747176649623,-348.689341,0.00010971,2]
[360976884,1747176649633,-302.552997,0.00010971,2]
[360976885,1747176649643,-348.689341,0.00010971,2]
[360976886,1747176649653,-152.904492,0.00010971,2]
[360976887,1747176649663,-152.904492,0.00010971,2]
[360976888,1747176649672,-242.116731,0.00010971,2]
[360976889,1747176649682,-242.116731,0.00010971,2]
[360976890,1747176649691,-151.0,0.00010971,2]
[360976891,1747176649701,-151.0,0.00010971,2]
[360976892,1747176649711,-151.0,0.00010971,2]
[360976893,1747176649720,-151.0,0.00010971,2]
[360976894,1747176649730,-151.0,0.00010971,2]
[360976895,1747176649739,-500.0,0.00010973,2]
[360976896,1747176649749,-524.29936154,0.00010973,2]
[360976897,1747176649759,-500.0,0.00010973,2]
[360976898,1747176649769,-500.0,0.00010973,2]
[360976899,1747176649778,-500.0,0.00010973,2]
[360976900,1747176649788,-165.04582177,0.00010973,2]
[360976901,1747176649798,-500.0,0.00010973,2]
[360976902,1747176649808,-500.0,0.00010973,2]
[360976903,1747176649817,-500.0,0.00010973,2]
[360976904,1747176649827,-500.0,0.00010973,2]
[360976905,1747176649836,-368.273227,0.00010973,2]
[360976906,1747176649845,-368.273227,0.00010973,2]
[360976907,1747176649855,-151.0,0.00010973,2]
[360976908,1747176649865,-398.440039,0.00010973,2]
[360976909,1747176649874,-398.440039,0.00010973,2]
[360976910,1747176649884,-151.0,0.00010973,2]
[360976911,1747176649894,-244.173136,0.00010973,2]
[360976912,1747176649904,-244.173136,0.00010973,2]
[360976913,1747176649914,-635.713762,0.00010973,2]
[360976914,1747176649924,-635.713762,0.00010973,2]
[360976915,1747176649933,-151.0,0.00010973,2]
[360976916,1747176649943,-151.0,0.00010973,2]
[360976917,1747176649952,-372.683801,0.00010973,2]
[360976918,1747176649962,-372.683801,0.00010973,2]
[360976919,1747176649971,-151.0,0.00010973,2]
[360976920,1747176649981,-151.0,0.00010978,2]
[360976921,1747176649991,-151.0,0.00010978,2]
[360976922,1747176650000,-212.087228,0.00010978,2]
[360976923,1747176650011,-212.087228,0.00010978,2]
[360976924,1747176650020,-151.0,0.00010978,2]
[360976925,1747176650030,-151.0,0.00010978,2]
[360976926,1747176650040,-151.0,0.00010978,2]
[360976927,1747176650049,-151.139146,0.00010978,2]
[360976928,1747176650059,-152.363441,0.00010978,2]
[360976929,1747176650068,-152.363441,0.00010978,2]
[360976930,1747176650077,-152.363441,0.00010978,2]
[360976931,1747176650087,-152.363441,0.00010978,2]
[360976932,1747176650096,-152.363441,0.00010978,2]
[360976933,1747176650107,-152.363441,0.00010978,2]
[360976934,1747176650116,-151.0,0.00010978,2]
[360976935,1747176650126,-151.0,0.00010978,2]
[360976936,1747176650136,-266.641752,0.00010978,2]
[360976937,1747176650146,-154.216088,0.00010978,2]
[360976938,1747176650155,-152.112914,0.00010978,2]
[360976939,1747176650164,-151.0,0.00010978,2]
[360976940,1747176650175,-151.0,0.00010978,2]
[360976941,1747176650185,-151.0,0.00010978,2]
[360976942,1747176650195,-151.0,0.00010978,2]
[360976943,1747176650205,-151.0,0.00010978,2]
[360976944,1747176650214,-649.911468,0.00010978,2]
[360976945,1747176650224,-649.911468,0.00010978,2]
[360976946,1747176650234,-649.911468,0.00010978,2]
[360976947,1747176650244,-649.911468,0.00010978,2]
[360976948,1747176650254,-151.0,0.00010978,2]
[360976949,1747176650264,-151.0,0.00010978,2]
[360976950,1747176650274,-151.0,0.00010978,2]
[360976951,1747176650283,-151.0,0.00010978,2]
[360976952,1747176650293,-151.0,0.00010978,2]
[360976953,1747176650303,-394.63654,0.00010978,2]
[360976954,1747176650312,-394.63654,0.00010978,2]
[360976955,1747176650321,-151.0,0.00010978,2]
[360976956,1747176650331,-151.0,0.00010978,2]
[360976957,1747176650340,-151.0,0.00010978,2]
[360976958,1747176650349,-151.0,0.00010978,2]
[360976959,1747176650361,-151.0,0.00010978,2]
[360976960,1747176650371,-231.112644,0.00010978,2]
[360976961,1747176650380,-154.726793,0.00010978,2]
[360976962,1747176650390,-151.0,0.00010978,2]
[360976963,1747176650400,-1259.231209,0.00010978,2]
[360976964,1747176650412,-1259.231209,0.00010978,2]
[360976965,1747176650423,-151.0,0.00010978,2]
[360976966,1747176650432,-156.319889,0.00010978,2]
[360976967,1747176650442,-302.552997,0.00010978,2]
[360976968,1747176650451,-348.689341,0.00010978,2]
[360976969,1747176650462,-302.552997,0.00010978,2]
[360976970,1747176650472,-348.689341,0.00010978,2]
[360976971,1747176650481,-152.904492,0.00010978,2]
[360976972,1747176650492,-152.904492,0.00010978,2]
[360976973,1747176650502,-242.116731,0.00010978,2]
[360976974,1747176650511,-242.116731,0.00010978,2]
[360976975,1747176650522,-151.0,0.00010979,2]
[360976976,1747176650533,-151.0,0.00010979,2]
[360976977,1747176650542,-151.0,0.00010979,2]
[360976978,1747176650551,-151.0,0.00010979,2]
[360976979,1747176650559,-151.0,0.00010979,2]
[360976980,1747176650569,-151.0,0.00010979,2]
[360976981,1747176650579,-279.602596,0.00010979,2]
[360976982,1747176650588,-212.087228,0.00010979,2]
[360976983,1747176650598,-212.087228,0.00010979,2]
[360976984,1747176650607,-212.087228,0.00010979,2]
[360976985,1747176650616,-212.087228,0.00010979,2]
[360976986,1747176650625,-212.087228,0.00010979,2]
[360976987,1747176650635,-212.087228,0.00010979,2]
[360976988,1747176650644,-151.0,0.00010979,2]
[360976989,1747176650653,-151.0,0.00010979,2]
[360976990,1747176650662,-151.0,0.00010979,2]
[360976991,1747176650671,-151.0,0.00010979,2]
[360976992,1747176650680,-152.363441,0.00010979,2]
[360976993,1747176650690,-152.363441,0.00010979,2]
[360976994,1747176650699,-152.363441,0.00010979,2]
[360976995,1747176650709,-152.363441,0.00010979,2]
[360976996,1747176650718,-152.363441,0.00010979,2]
[360976997,1747176650727,-152.363441,0.00010979,2]
[360976998,1747176650737,-151.0,0.00010979,2]
[360976999,1747176650746,-151.0,0.00010979,2]
[360977000,1747176650756,-151.0,0.00010979,2]
[360977001,1747176650765,-151.0,0.00010979,2]
[360977002,1747176650774,-649.911468,0.00010979,2]
[360977003,1747176650784,-649.911468,0.00010979,2]
[360977004,1747176650794,-649.911468,0.00010979,2]
[360977005,1747176650803,-649.911468,0.00010979,2]
[360977006,1747176650812,-151.0,0.00010979,2]
[360977007,1747176650822,-151.0,0.00010979,2]
[360977008,1747176650831,-151.0,0.00010979,2]
[360977009,1747176650841,-151.0,0.00010979,2]
[360977010,1747176650850,-394.63654,0.00010979,2]
[360977011,1747176650860,-394.63654,0.00010979,2]
[360977012,1747176650869,-151.0,0.00010979,2]
[360977013,1747176650879,-1259.231209,0.00010979,2]
[360977014,1747176650889,-1259.231209,0.00010979,2]
[360977015,1747176650899,-151.0,0.00010979,2]
[360977016,1747176650908,-302.552997,0.00010979,2]
[360977017,1747176650918,-302.552997,0.00010979,2]
[360977018,1747176650929,-368.273227,0.00010979,2]
[360977019,1747176650938,-368.273227,0.00010979,2]
[360977020,1747176650948,-151.0,0.00010979,2]
[360977021,1747176650957,-242.116731,0.00010979,2]
[360977022,1747176650966,-242.116731,0.00010979,2]
[360977023,1747176650976,-398.440039,0.00010979,2]
[360977024,1747176650985,-398.440039,0.00010979,2]
[360977025,1747176650994,-151.0,0.00010979,2]
[360977026,1747176651004,-151.0,0.00010979,2]
[360977027,1747176651013,-151.0,0.00010979,2]
[360977028,1747176651023,-151.0,0.00010979,2]
[360977029,1747176651032,-151.0,0.00010979,2]
[360977030,1747176651041,-242.223407,0.00010979,2]
[360977031,1747176651051,-308.77634312,0.0001098,2]
[360977032,1747176651061,-4038.91161959,0.0001098,2]
[360977033,1747176651070,-182.149029,0.0001098,2]
[360977034,1747176651080,-151.0,0.0001098,2]
[360977035,1747176651090,-151.0,0.0001098,2]
[360977036,1747176651100,-152.67642,0.0001098,2]
[360977037,1747176651110,-1000.0,0.0001098,2]
[360977038,1747176651120,-1000.0,0.0001098,2]
[360977039,1747176651129,-1000.0,0.0001098,2]
[360977040,1747176651139,-1000.0,0.0001098,2]
[360977041,1747176651148,-1000.0,0.0001098,2]
[360977042,1747176651159,-1000.0,0.0001098,2]
[360977043,1747176651168,-784.16391806,0.0001098,2]
[360977044,1747176651179,-151.0,0.0001098,2]
[360977045,1747176651188,-212.087228,0.0001098,2]
[360977046,1747176651198,-212.087228,0.0001098,2]
[360977047,1747176651208,-151.0,0.0001098,2]
[360977048,1747176651217,-151.0,0.0001098,2]
[360977049,1747176651227,-151.0,0.0001098,2]
[360977050,1747176651236,-649.911468,0.0001098,2]
[360977051,1747176651246,-649.911468,0.0001098,2]
[360977052,1747176651255,-151.0,0.0001098,2]
[360977053,1747176651264,-151.0,0.0001098,2]
[360977054,1747176651274,-151.0,0.0001098,2]
[360977055,1747176651283,-151.0,0.0001098,2]
[360977056,1747176651293,-348.689341,0.0001098,2]
[360977057,1747176651302,-348.689341,0.0001098,2]
[360977058,1747176651311,-152.904492,0.0001098,2]
[360977059,1747176651321,-152.904492,0.0001098,2]
[360977060,1747176651330,-244.173136,0.0001098,2]
[360977061,1747176651339,-244.17314338,0.0001098,2]
[360977062,1747176651349,-635.713762,0.0001098,2]
[360977063,1747176651358,-635.713766,0.0001098,2]
[360977064,1747176651368,-151.0,0.0001098,2]
[360977065,1747176651378,-151.0,0.0001098,2]
[360977066,1747176651387,-372.683801,0.0001098,2]
[360977067,1747176651397,-372.683794,0.0001098,2]
[360977068,1747176651407,-151.0,0.0001098,2]
[360977069,1747176651419,-151.0,0.00010981,2]
[360977070,1747176651429,-151.031569,0.00010981,2]
[360977071,1747176651439,-151.0,0.00010981,2]
[360977072,1747176651448,-151.0,0.00010982,2]
[360977073,1747176651458,-152.363441,0.00010982,2]
[360977074,1747176651467,-152.363441,0.00010982,2]
[360977075,1747176651477,-151.0,0.00010982,2]
[360977076,1747176651486,-1186.0,0.00010986,2]
[360977077,1747176651497,-300.0,0.00010991,2]
[360977078,1747176651508,-300.0,0.00010991,2]
[360977079,1747176651518,-151.0,0.00010992,2]
[360977080,1747176651527,-212.087228,0.00010992,2]
[360977081,1747176651537,-212.087228,0.00010992,2]
[360977082,1747176651547,-212.087228,0.00010992,2]
[360977083,1747176651556,-212.087228,0.00010992,2]
[360977084,1747176651565,-151.0,0.00010992,2]
[360977085,1747176651575,-151.0,0.00010992,2]
[360977086,1747176651585,-152.363441,0.00010992,2]
[360977087,1747176651594,-152.363441,0.00010992,2]
[360977088,1747176651604,-252.882858,0.00010992,2]
[360977089,1747176651613,-286.100548,0.00010992,2]
[360977090,1747176651623,-649.911468,0.00010992,2]
[360977091,1747176651633,-649.911468,0.00010992,2]
[360977092,1747176651643,-649.911468,0.00010992,2]
[360977093,1747176651652,-649.911468,0.00010992,2]
[360977094,1747176651662,-151.0,0.00010992,2]
[360977095,1747176651672,-151.0,0.00010992,2]
[360977096,1747176651682,-151.0,0.00010992,2]
[360977097,1747176651692,-151.0,0.00010992,2]
[360977098,1747176651702,-151.0,0.00010992,2]
[360977099,1747176651711,-151.0,0.00010992,2]
[360977100,1747176651720,-280.159856,0.00010992,2]
[360977101,1747176651730,-394.63654,0.00010992,2]
[360977102,1747176651740,-394.63654,0.00010992,2]
[360977103,1747176651912,-394.63654,0.00010992,2]
[360977104,1747176651924,-394.63654,0.00010992,2]
[360977105,1747176651934,-394.63654,0.00010992,2]
[360977106,1747176651944,-394.63654,0.00010992,2]
[360977107,1747176651953,-151.0,0.00010992,2]
[360977108,1747176651963,-151.0,0.00010992,2]
[360977109,1747176651973,-151.0,0.00010992,2]
[360977110,1747176651983,-151.0,0.00010992,2]
[360977111,1747176651992,-273.7521,0.00010992,2]
[360977112,1747176652002,-1259.231209,0.00010992,2]
[360977113,1747176652011,-1259.231206,0.00010992,2]
[360977114,1747176652021,-151.0,0.00010992,2]
[360977115,1747176652030,-302.552997,0.00010992,2]
[360977116,1747176652039,-348.689341,0.00010992,2]
[360977117,1747176652048,-302.552995,0.00010992,2]
[360977118,1747176652058,-348.689349,0.00010992,2]
[360977119,1747176652067,-152.904492,0.00010992,2]
[360977120,1747176652077,-152.904492,0.00010992,2]
[360977121,1747176652087,-152.904492,0.00010992,2]
[360977122,1747176652096,-152.904492,0.00010992,2]
[360977123,1747176652105,-368.273227,0.00010992,2]
[360977124,1747176652115,-368.273224,0.00010992,2]
[360977125,1747176652124,-151.0,0.00010992,2]
[360977126,1747176652133,-242.116731,0.00010992,2]
[360977127,1747176652142,-242.116739,0.00010992,2]
[360977128,1747176652152,-398.440039,0.00010992,2]
[360977129,1747176652161,-398.440043,0.00010992,2]
[360977130,1747176652171,-151.0,0.00010992,2]
[360977131,1747176652181,-151.0,0.00010992,2]
[360977132,1747176652190,-8234.6851092,0.00010992,2]
[360977133,1747176652200,-151.0,0.00010992,2]
[360977134,1747176652209,-151.0,0.00010992,2]
[360977135,1747176652219,-928.8800555,0.00010992,2]
[360977136,1747176652229,-17715.7159972,0.00010992,2]
[360977137,1747176652238,-110122.8051971,0.00010992,2]
[360977138,1747176652248,-125606.8333333,0.00010992,2]
[360977139,1747176652257,-21648.6433333,0.00010992,2]
[360977140,1747176652267,-1000.0,0.00010999,2]
[360977141,1747176652276,-151.0,0.00010999,2]
[360977142,1747176652286,-151.0,0.00010999,2]
[360977143,1747176652295,-1000.0,0.00010999,2]
[360977144,1747176652305,-300.0,0.00010999,2]
[360977145,1747176652314,-304167.11766291,0.00011,2]
[360977146,1747176652324,-938071.04875529,0.00011,2]
[360977147,1747176652334,-618866.91652148,0.00011,2]
[360977148,1747176652343,-4839.61282621,0.00011,2]
[360977149,1747176652353,-1817626.2315874,0.00011,2]
[360977150,1747176652786,-378.925,0.00011,2]
[360977151,1747176652799,-2881.1945751,0.00011,2]
[360977152,1747176654775,-230.99060956,0.000109,2]
[360977153,1747176654786,-400.0,0.0001096,2]
[360977154,1747176654797,-400.0,0.00010961,2]
[360977155,1747176654807,-151.0,0.00010962,2]
[360977156,1747176654819,-25111.66620214,0.00011,2]
[360977157,1747176654851,-937.61,0.00010969,2]
[360977158,1747176654860,-870.58999996,0.00011,2]
[360977159,1747176734367,1993.39878539,9.833e-05,2]
[360977160,1747176734390,10000.0,9.833e-05,2]
[360977161,1747176734412,6121.12911461,9.833e-05,2]
[360977162,1747176742331,1493.5268,9.833e-05,2]
[360977163,1747176844204,1293.05,8.219e-05,2]
[360977164,1747177014859,565.63,9.359e-05,2]
[360977165,1747177031406,526.66408539,9.849e-05,2]
[360977166,1747177031434,19.45133378,9.849e-05,2]
[360977167,1747177043380,716.04,9.375e-05,2]
[360977168,1747177061350,1668.174914,9.896e-05,2]
[360977171,1747177126549,1000.0,9.363e-05,2]
[360977172,1747177215626,6596.33375222,9.326e-05,2]
[360977173,1747177215652,10000.0,9.326e-05,2]
[360977174,1747177215678,7303.66624778,9.326e-05,2]
[360977175,1747177221654,1213.38,9.326e-05,2]
[360977176,1747177321885,200.0,9.346e-05,2]
[360977177,1747177469837,250.0,9.332e-05,2]